Workbook

Sheet Consideraciones

Sheet PART 1
B3: Secretaría de Educación Pública del Estado de Baja California Sur
B4: Dirección de Educación Secundaria
B5: NIVELES DE COMUNICACIÓN Y PARTICIPACIÓN DE ALUMNOS
B6: PRIMER GRADO
G8: PERIODO EVALUACIÓN: | R8: CONCENTRADO GENERAL
G9: CICLO ESCOLAR : | R9: 2020 - 2021
A11: DIRECCIÓN: | G11: DIRECCIÓN DE EDUCACIÓN SECUNDARIA
A12: DIRECTOR: | G12: PROFR. RUMUALDO RAMÍREZ GUTIÉRREZ
A15: COMUNICACIÓN Y PARTICIPACIÓN CON ALUMNOS (Registrar cantidad de alumnos)
A16: MODALIDAD | D16: EXISTENCIA (Alumnos inscritos) | G16: COMUNICACIÓN Y PARTICIPACIÓN SOSTENIDA | K16: % | O16: COMUNICACIÓN Y PARTICIPACIÓN INTERMITENTE | S16: % | W16: COMUNICACIÓN PRÁCTICAMENTE INEXISTENTE | AA16: % | AD16: TOTAL
D17: H | E17: M | F17: T
A18: I PERIODO | F18: =SUM(D18,E18) -> 0 | G18: 9729 | K18: =IFERROR(G18/F18*100,"") ->  | O18: 3437 | S18: =IFERROR(O18/F18*100,"") ->  | W18: 2392 | AA18: =IFERROR(W18/F18*100,"") ->  | AD18: =SUM(G18,O18,W18) -> 15558
A19: II PERIODO | D19: 6986 | E19: 7043 | F19: =SUM(D19,E19) -> 14029 | G19: 7905 | K19: =IFERROR(G19/F19*100,"") -> 56.34756576 | O19: 4476 | S19: =IFERROR(O19/F19*100,"") -> 31.90533894 | W19: 1648 | AA19: =IFERROR(W19/F19*100,"") -> 11.7470953 | AD19: 14029
A20: III PERIODO | D20: 6809 | E20: 6869 | F20: 13678 | G20: 10312 | K20: 75.39113906 | O20: 2634 | S20: 19.25720135 | W20: 732 | AA20: 5.351659599 | AD20: 13678
A21: TOTAL | D21: =SUM(D18:D20) -> 13795 | E21: =SUM(E18:E20) -> 13912 | F21: =SUM(F18:F20) -> 27707 | G21: =SUM(G18:J20) -> 27946 | K21: =IFERROR(G21/F21*100,"") -> 100.8625979 | O21: =SUM(O18:R20) -> 10547 | S21: 38.06619266 | W21: =SUM(W18:Z20) -> 4772 | AA21: 17.22308442 | AD21: =SUM(G21,O21,W21) -> 43265

Sheet Gráfica PART 1
B3: Secretaría de Educación Pública del Estado de Baja California Sur
B4: Dirección de Educación Secundaria
B5: PRIMER GRADO
B6: PERIODO EVALUACIÓN: | N6: ='PART 1'!R8 -> CONCENTRADO GENERAL
B7: CICLO ESCOLAR : | N7: ='PART 1'!R9 -> 2020 - 2021
A9: DIRECCIÓN: | F9: ='PART 1'!G11 -> DIRECCIÓN DE EDUCACIÓN SECUNDARIA
A10: DIRECTOR: | E10: ='PART 1'!G12 -> PROFR. RUMUALDO RAMÍREZ GUTIÉRREZ
D13: COMUNICACIÓN Y PARTICIPACIÓN SOSTENIDA | E13: COMUNICACIÓN Y PARTICIPACIÓN INTERMITENTE | F13: COMUNICACIÓN PRÁCTICAMENTE INEXISTENTE
D14: ='PART 1'!K21/100 -> 1.008625979 | E14: ='PART 1'!S21/100 -> 0.3806619266 | F14: ='PART 1'!AA21/100 -> 0.1722308442

Sheet PCI 1
B3: Secretaría de Educación Pública del Estado de Baja California Sur
B4: Dirección de Educación Secundaria
B5: PRIMER GRADO
B7: PERIODO EVALUACIÓN: | G7: ='PART 1'!R8 -> CONCENTRADO GENERAL
B8: CICLO ESCOLAR : | G8: ='PART 1'!R9 -> 2020 - 2021
A10: DIRECCIÓN: | C10: ='PART 1'!G11 -> DIRECCIÓN DE EDUCACIÓN SECUNDARIA
A11: DIRECTOR: | C11: ='Gráfica PART 1'!E10 -> PROFR. RUMUALDO RAMÍREZ GUTIÉRREZ
A13: MODALIDAD | D13: COMUNICACIÓN INTERMITENTE Y BAJA PARTICIPACIÓN EN ACTIVIDADES PROPUESTAS POR EL PROFESOR (Registrar cantidad de alumnos)
D14: Lengua Materna (Español) | E14: Matemáticas | F14: Lengua Extranjera (Inglés) | G14: Ciencias (Biología) | H14: Historia | I14: Geografía | J14: Formación Cívica y Ética | K14: Tecnología | L14: Educación Física | M14: Artes
A15: I PERIODO
A16: II PERIODO | D16: 2922 | E16: 2800 | F16: 2766 | G16: 2994 | H16: 2979 | I16: 2898 | J16: 2861 | K16: 2836 | L16: 3102 | M16: 2995
A17: III PERIODO | D17: 2348 | E17: 2254 | F17: 2244 | G17: 2424 | H17: 2191 | I17: 2134 | J17: 2234 | K17: 2255 | L17: 2373 | M17: 2236
A18: TOTAL | D18: =SUM(D15:D17) -> 5270 | E18: 5054 | F18: 5010 | G18: 5418 | H18: 5170 | I18: 5032 | J18: 5095 | K18: 5091 | L18: 5475 | M18: 5231
A21: RUBRO PARA IDENTIFICAR LAS CAUSAS SOBRE LA COMUNICACIÓN INTERMITENTE
A23: Señale en orden de importancia las tres principales causas que usted considere que han influido para que los alumnos mantengan una COMUNICACIÓN INTERMITENTE con sus maestras (os). Indique númericamente 1,2,3. | F23: Algunos alumnos se conectan desde un dispositivo móvil como el celular, através de recargas de datos, lo que origina que solo AVECES, y en algunas asignaturas, se puedan conectar para mantener comunicación con sus maestras (os) y envíar las actividades planteadas.
F24: Algunos alumnos trabajan para contribuir a los gastos en el hogar
F25: Las condiciones de movilidad familiar, como el cambio de domicilio, visitar a parientes en horarios de clases, acudir al médico o realizar actividades fuera del hogar (por mencionar algunas), no le permiten al alumno mantenerse conectado regularmente con sus maestras (os) y envíar las actividades planteadas.
F26: Algunos alumnos no tienen acceso a ninguna herramienta de conectividad en el hogar para mantener una comunicación constante con sus maestras (os), por lo que requieren desplazarse a otros sitios donde puedan acceder a ellos, como ir a casa de un familiar, vecino o a un ciber-café para hacer uso de ellas, propiciando que no se mantengan regularmente comunicados.
F27: Algunos alumnos cuentan con una sola herramienta de conectividad en el hogar, y deben compartir su uso con otros integrantes de su familia (por ejemplo, con hermanos que también estudian) generando que no siempre puedan mantenerse conectados con sus maestras (os) y estar al corriente en la entrega de actividades planteadas.
F28: Algunos alumnos tienen todas las facilidades para acceder a las clases con sus maestras(os) y entregar oportunamente las actividades planteadas, pero no tienen el interés personal para hacerlo.
F29: Algunos alumnos se encuentran solos en el hogar durante la elaboración de las actividades planteadas por sus maestras (os), requiriendo de asesoría y supervisión para su elaboración, lo que propicia inseguridad en el envío de las mismas, optando por no mandarlas para su revisión y registro.
F30: Algunos alumnos están padeciendo la ausencia de sus padres o de algún miembro de su familia a causa de enfermedad o la pérdida de un familiar en el hogar.
F31: Algunos alumnos se hacen cargo de sus hermanos menores, al estar ausente los padres por situación laboral u otra índole.
F32: Registre otras causas (si fuera el caso)

Sheet Gráfica PCI 1
B3: Secretaría de Educación Pública del Estado de Baja California Sur
B4: Dirección de Educación Secundaria
B5: PRIMER GRADO
B6: PERIODO EVALUACIÓN: | N6: ='PART 1'!R8 -> CONCENTRADO GENERAL
B7: CICLO ESCOLAR : | N7: ='PART 1'!R9 -> 2020 - 2021
A9: DIRECCIÓN: | F9: ='PART 1'!G11 -> DIRECCIÓN DE EDUCACIÓN SECUNDARIA
A10: DIRECTOR: | E10: ='PCI 1'!C11 -> PROFR. RUMUALDO RAMÍREZ GUTIÉRREZ
B13: Lengua Materna (Español) | C13: Matemáticas | D13: Lengua Extranjera (Inglés) | E13: Ciencias (Biología) | F13: Historia | G13: Geografía | H13: Formación Cívica y Ética | I13: Tecnología | J13: Educación Física | K13: Artes | P13: TOTAL
B14: ='PCI 1'!D18/P14 -> 0.1016471859 | C14: ='PCI 1'!E18/P14 -> 0.09748100143 | D14: ='PCI 1'!F18/P14 -> 0.09663233422 | E14: ='PCI 1'!G18/P14 -> 0.1045017938 | F14: ='PCI 1'!H18/P14 -> 0.09971839679 | G14: ='PCI 1'!I18/P14 -> 0.09705666782 | H14: ='PCI 1'!J18/P14 -> 0.09827180496 | I14: ='PCI 1'!K18/P14 -> 0.0981946534 | J14: ='PCI 1'!L18/P14 -> 0.1056012036 | K14: ='PCI 1'!M18/P14 -> 0.1008949581 | P14: =SUM('PCI 1'!D18:P18) -> 51846

Sheet PART 2
B3: Secretaría de Educación Pública del Estado de Baja California Sur
B4: Dirección de Educación Secundaria
B5: NIVELES DE COMUNICACIÓN Y PARTICIPACIÓN DE ALUMNOS
B6: SEGUNDO GRADO
G8: PERIODO EVALUACIÓN: | R8: ='PART 1'!R8 -> CONCENTRADO GENERAL
G9: CICLO ESCOLAR : | R9: ='PART 1'!R9 -> 2020 - 2021
A11: DIRECCIÓN: | G11: ='PART 1'!G11 -> DIRECCIÓN DE EDUCACIÓN SECUNDARIA
A12: DIRECTOR: | G12: ='Gráfica PCI 1'!E10 -> PROFR. RUMUALDO RAMÍREZ GUTIÉRREZ
A15: COMUNICACIÓN Y PARTICIPACIÓN CON ALUMNOS (Registrar cantidad de alumnos)
A16: GRUPO | D16: EXISTENCIA (Alumnos inscritos) | G16: COMUNICACIÓN Y PARTICIPACIÓN SOSTENIDA | K16: % | O16: COMUNICACIÓN Y PARTICIPACIÓN INTERMITENTE | S16: % | W16: COMUNICACIÓN PRÁCTICAMENTE INEXISTENTE | AA16: % | AD16: TOTAL
D17: H | E17: M | F17: T
A18: I PERIODO | F18: =SUM(D18,E18) -> 0 | G18: 9088 | K18: =IFERROR(G18/F18*100,"") ->  | O18: 3460 | S18: =IFERROR(O18/F18*100,"") ->  | W18: 2495 | AA18: =IFERROR(W18/F18*100,"") ->  | AD18: =SUM(G18,O18,W18) -> 15043
A19: II PERIODO | D19: 6783 | E19: 6763 | F19: =SUM(D19,E19) -> 13546 | G19: 7527 | K19: =IFERROR(G19/F19*100,"") -> 55.56621881 | O19: 4138 | S19: =IFERROR(O19/F19*100,"") -> 30.54776318 | W19: 1881 | AA19: =IFERROR(W19/F19*100,"") -> 13.88601801 | AD19: 13546
A20: III PERIODO | D20: 6656 | E20: 6648 | F20: 13304 | G20: 9765 | K20: 73.39897775 | O20: 2688 | S20: 20.20444979 | W20: 851 | AA20: 6.396572459 | AD20: 13304
A21: TOTAL | D21: =SUM(D18:D20) -> 13439 | E21: =SUM(E18:E20) -> 13411 | F21: =SUM(F18:F20) -> 26850 | G21: =SUM(G18:J20) -> 26380 | K21: 98.24953445 | O21: =SUM(O18:R20) -> 10286 | S21: 38.30912477 | W21: =SUM(W18:Z20) -> 5227 | AA21: 19.46741155 | AD21: =SUM(G21,O21,W21) -> 41893

Sheet Gráfica PART 2
B3: Secretaría de Educación Pública del Estado de Baja California Sur
B4: Dirección de Educación Secundaria
B5: SEGUNDO GRADO
B6: PERIODO EVALUACIÓN: | N6: ='PART 1'!R8 -> CONCENTRADO GENERAL
B7: CICLO ESCOLAR : | N7: ='PART 1'!R9 -> 2020 - 2021
A9: DIRECCIÓN: | F9: ='PART 1'!G11 -> DIRECCIÓN DE EDUCACIÓN SECUNDARIA
A10: DIRECTOR: | E10: ='PART 2'!G12 -> PROFR. RUMUALDO RAMÍREZ GUTIÉRREZ
D13: COMUNICACIÓN Y PARTICIPACIÓN SOSTENIDA | E13: COMUNICACIÓN Y PARTICIPACIÓN INTERMITENTE | F13: COMUNICACIÓN PRÁCTICAMENTE INEXISTENTE
D14: ='PART 2'!K21/100 -> 0.9824953445 | E14: ='PART 2'!S21/100 -> 0.3830912477 | F14: ='PART 2'!AA21/100 -> 0.1946741155

Sheet PCI 2
B3: Secretaría de Educación Pública del Estado de Baja California Sur
B4: Dirección de Educación Secundaria
B5: SEGUNDO GRADO
B7: PERIODO EVALUACIÓN: | G7: ='PART 1'!R8 -> CONCENTRADO GENERAL
B8: CICLO ESCOLAR : | G8: ='PART 1'!R9 -> 2020 - 2021
A10: DIRECCIÓN: | C10: ='PART 1'!G11 -> DIRECCIÓN DE EDUCACIÓN SECUNDARIA
A11: DIRECTOR: | C11: ='Gráfica PART 2'!E10 -> PROFR. RUMUALDO RAMÍREZ GUTIÉRREZ
A13: MODALIDAD | D13: COMUNICACIÓN INTERMITENTE Y BAJA PARTICIPACIÓN EN ACTIVIDADES PROPUESTAS POR EL PROFESOR (Registrar cantidad de alumnos)
D14: Lengua Materna (Español) | E14: Matemáticas | F14: Lengua Extranjera (Inglés) | G14: Ciencias (Física) | H14: Historia | I14: Formación Cívica y Ética | K14: Tecnología | L14: Educación Física | M14: Artes
A15: I PERIODO
A16: II PERIODO | D16: 3094 | E16: 2656 | F16: 2576 | G16: 2917 | H16: 2963 | I16: 2805 | K16: 2780 | L16: 2913 | M16: 3098
A17: III PERIODO | D17: 2547 | E17: 2544 | F17: 2416 | G17: 2389 | H17: 2255 | I17: 2244 | K17: 2425 | L17: 2317 | M17: 2559
A18: TOTAL | D18: =SUM(D15:D17) -> 5641 | E18: =SUM(E15:E17) -> 5200 | F18: =SUM(F15:F17) -> 4992 | G18: =SUM(G15:G17) -> 5306 | H18: =SUM(H15:H17) -> 5218 | I18: =SUM(I15:J17) -> 5049 | K18: =SUM(K15:K17) -> 5205 | L18: =SUM(L15:L17) -> 5230 | M18: =SUM(M15:M17) -> 5657
A21: RUBRO PARA IDENTIFICAR LAS CAUSAS SOBRE LA COMUNICACIÓN INTERMITENTE
A23: Señale en orden de importancia las tres principales causas que usted considere que han influido para que los alumnos mantengan una COMUNICACIÓN INTERMITENTE con sus maestras (os). Indique númericamente 1,2,3. | F23: Algunos alumnos se conectan desde un dispositivo móvil como el celular, através de recargas de datos, lo que origina que solo AVECES, y en algunas asignaturas, se puedan conectar para mantener comunicación con sus maestras (os) y envíar las actividades planteadas.
F24: Algunos alumnos trabajan para contribuir a los gastos en el hogar
F25: Las condiciones de movilidad familiar, como el cambio de domicilio, visitar a parientes en horarios de clases, acudir al médico o realizar actividades fuera del hogar (por mencionar algunas), no le permiten al alumno mantenerse conectado regularmente con sus maestras (os) y envíar las actividades planteadas.
F26: Algunos alumnos no tienen acceso a ninguna herramienta de conectividad en el hogar para mantener una comunicación constante con sus maestras (os), por lo que requieren desplazarse a otros sitios donde puedan acceder a ellos, como ir a casa de un familiar, vecino o a un ciber-café para hacer uso de ellas, propiciando que no se mantengan regularmente comunicados.
F27: Algunos alumnos cuentan con una sola herramienta de conectividad en el hogar, y deben compartir su uso con otros integrantes de su familia (por ejemplo, con hermanos que también estudian) generando que no siempre puedan mantenerse conectados con sus maestras (os) y estar al corriente en la entrega de actividades planteadas.
F28: Algunos alumnos tienen todas las facilidades para acceder a las clases con sus maestras(os) y entregar oportunamente las actividades planteadas, pero no tienen el interés personal para hacerlo.
F29: Algunos alumnos se encuentran solos en el hogar durante la elaboración de las actividades planteadas por sus maestras (os), requiriendo de asesoría y supervisión para su elaboración, lo que propicia inseguridad en el envío de las mismas, optando por no mandarlas para su revisión y registro.
F30: Algunos alumnos están padeciendo la ausencia de sus padres o de algún miembro de su familia a causa de enfermedad o la pérdida de un familiar en el hogar.
F31: Algunos alumnos se hacen cargo de sus hermanos menores, al estar ausente los padres por situación laboral u otra índole.
F32: Registre otras causas (si fuera el caso)

Sheet Gráfica PCI 2
B3: Secretaría de Educación Pública del Estado de Baja California Sur
B4: Dirección de Educación Secundaria
B5: SEGUNDO GRADO
B6: PERIODO EVALUACIÓN: | N6: ='PART 1'!R8 -> CONCENTRADO GENERAL
B7: CICLO ESCOLAR : | N7: ='PART 1'!R9 -> 2020 - 2021
A9: DIRECCIÓN: | F9: ='PART 1'!G11 -> DIRECCIÓN DE EDUCACIÓN SECUNDARIA
A10: DIRECTOR: | E10: ='PCI 2'!C11 -> PROFR. RUMUALDO RAMÍREZ GUTIÉRREZ
B13: Lengua Materna (Español) | C13: Matemáticas | D13: Lengua Extranjera (Inglés) | E13: Ciencias (Física) | F13: Historia | G13: Formación Cívica y Ética | H13: Tecnología | I13: Educación Física | J13: Artes | O13: TOTAL
B14: ='PCI 2'!D18/O14 -> 0.1187628953 | C14: ='PCI 2'!E18/O14 -> 0.1094782938 | D14: ='PCI 2'!F18/O14 -> 0.1050991621 | E14: ='PCI 2'!G18/O14 -> 0.1117099667 | F14: ='PCI 2'!H18/O14 -> 0.1098572571 | G14: ='PCI 2'!I18/O14 -> 0.1062992126 | H14: ='PCI 2'!K18/O14 -> 0.1095835614 | I14: ='PCI 2'!L18/O14 -> 0.1101098994 | J14: ='PCI 2'!M18/O14 -> 0.1190997516 | O14: =SUM('PCI 2'!D18:P18) -> 47498

Sheet PART 3
B3: Secretaría de Educación Pública del Estado de Baja California Sur
B4: Dirección de Educación Secundaria
B5: NIVELES DE COMUNICACIÓN Y PARTICIPACIÓN DE ALUMNOS
B6: TERCER GRADO
G8: PERIODO EVALUACIÓN: | R8: ='PART 1'!R8 -> CONCENTRADO GENERAL
G9: CICLO ESCOLAR : | R9: ='PART 1'!R9 -> 2020 - 2021
A11: DIRECCIÓN: | G11: ='PART 1'!G11 -> DIRECCIÓN DE EDUCACIÓN SECUNDARIA
A12: DIRECTOR: | G12: ='Gráfica PCI 2'!E10 -> PROFR. RUMUALDO RAMÍREZ GUTIÉRREZ
A15: COMUNICACIÓN Y PARTICIPACIÓN CON ALUMNOS (Registrar cantidad de alumnos)
A16: MODALIDAD | D16: EXISTENCIA (Alumnos inscritos) | G16: COMUNICACIÓN Y PARTICIPACIÓN SOSTENIDA | K16: % | O16: COMUNICACIÓN Y PARTICIPACIÓN INTERMITENTE | S16: % | W16: COMUNICACIÓN PRÁCTICAMENTE INEXISTENTE | AA16: % | AD16: TOTAL
D17: H | E17: M | F17: T
A18: I PERIODO | F18: =SUM(D18,E18) -> 0 | G18: 8562 | K18: =IFERROR(G18/F18*100,"") ->  | O18: 3443 | S18: =IFERROR(O18/F18*100,"") ->  | W18: 2335 | AA18: =IFERROR(W18/F18*100,"") ->  | AD18: =SUM(G18,O18,W18) -> 14340
A19: II PERIODO | D19: 6554 | E19: 6310 | F19: =SUM(D19,E19) -> 12864 | G19: 7070 | K19: =IFERROR(G19/F19*100,"") -> 54.95957711 | O19: 4184 | S19: =IFERROR(O19/F19*100,"") -> 32.52487562 | W19: 1610 | AA19: =IFERROR(W19/F19*100,"") -> 12.51554726 | AD19: 12864
A20: III PERIODO | D20: 6459 | E20: 6216 | F20: 12675 | G20: 9414 | K20: 74.27218935 | O20: 2805 | S20: 22.13017751 | W20: 456 | AA20: 3.597633136 | AD20: 12675
A21: TOTAL | D21: =SUM(D18:D20) -> 13013 | E21: =SUM(E18:E20) -> 12526 | F21: =SUM(F18:F20) -> 25539 | G21: =SUM(G18:J20) -> 25046 | K21: 98.06961901 | O21: =SUM(O18:R20) -> 10432 | S21: 40.84733153 | W21: =SUM(W18:Z20) -> 4401 | AA21: 17.23246799 | AD21: =SUM(G21,O21,W21) -> 39879

Sheet Gráfica PART 3
B3: Secretaría de Educación Pública del Estado de Baja California Sur
B4: Dirección de Educación Secundaria
B5: TERCER GRADO
B6: PERIODO EVALUACIÓN: | N6: ='PART 1'!R8 -> CONCENTRADO GENERAL
B7: CICLO ESCOLAR : | N7: ='PART 1'!R9 -> 2020 - 2021
A9: DIRECCIÓN: | F9: ='PART 1'!G11 -> DIRECCIÓN DE EDUCACIÓN SECUNDARIA
A10: DIRECTOR: | E10: ='PART 3'!G12 -> PROFR. RUMUALDO RAMÍREZ GUTIÉRREZ
D13: COMUNICACIÓN Y PARTICIPACIÓN SOSTENIDA | E13: COMUNICACIÓN Y PARTICIPACIÓN INTERMITENTE | F13: COMUNICACIÓN PRÁCTICAMENTE INEXISTENTE
D14: ='PART 3'!K21/100 -> 0.9806961901 | E14: ='PART 3'!S21/100 -> 0.4084733153 | F14: ='PART 3'!AA21/100 -> 0.1723246799

Sheet PCI 3
B3: Secretaría de Educación Pública del Estado de Baja California Sur
B4: Dirección de Educación Secundaria
B5: TERCER GRADO
B7: PERIODO EVALUACIÓN: | G7: ='PART 1'!R8 -> CONCENTRADO GENERAL
B8: CICLO ESCOLAR : | G8: ='PART 1'!R9 -> 2020 - 2021
A10: DIRECCIÓN: | C10: ='PART 1'!G11 -> DIRECCIÓN DE EDUCACIÓN SECUNDARIA
A11: DIRECTOR: | C11: ='Gráfica PART 3'!E10 -> PROFR. RUMUALDO RAMÍREZ GUTIÉRREZ
A13: MODALIDAD | D13: COMUNICACIÓN INTERMITENTE Y BAJA PARTICIPACIÓN EN ACTIVIDADES PROPUESTAS POR EL PROFESOR (Registrar cantidad de alumnos)
D14: Español III | E14: Matemáticas III | F14: Segunda Lengua: Inglés III | G14: Ciencias III (Énfasis en Química) | H14: Historia II | I14: Formación Cívica y Ética II | K14: Tecnología | L14: Educación Física | M14: Artes
A15: I PERIODO
A16: II PERIODO | D16: 2707 | E16: 2843 | F16: 2426 | G16: 2900 | H16: 2773 | I16: 2721 | K16: 2694 | L16: 2543 | M16: 3091
A17: III PERIODO | D17: 2269 | E17: 2630 | F17: 2233 | G17: 2589 | H17: 2299 | I17: 2380 | K17: 2489 | L17: 2351 | M17: 2709
A18: TOTAL | D18: =SUM(D15:D17) -> 4976 | E18: =SUM(E15:E17) -> 5473 | F18: =SUM(F15:F17) -> 4659 | G18: =SUM(G15:G17) -> 5489 | H18: =SUM(H15:H17) -> 5072 | I18: =SUM(I15:J17) -> 5101 | K18: =SUM(K15:K17) -> 5183 | L18: =SUM(L15:L17) -> 4894 | M18: =SUM(M15:M17) -> 5800
A21: RUBRO PARA IDENTIFICAR LAS CAUSAS SOBRE LA COMUNICACIÓN INTERMITENTE
A23: Señale en orden de importancia las tres principales causas que usted considere que han influido para que los alumnos mantengan una COMUNICACIÓN INTERMITENTE con sus maestras (os). Indique númericamente 1,2,3. | F23: Algunos alumnos se conectan desde un dispositivo móvil como el celular, através de recargas de datos, lo que origina que solo AVECES, y en algunas asignaturas, se puedan conectar para mantener comunicación con sus maestras (os) y envíar las actividades planteadas.
F24: Algunos alumnos trabajan para contribuir a los gastos en el hogar
F25: Las condiciones de movilidad familiar, como el cambio de domicilio, visitar a parientes en horarios de clases, acudir al médico o realizar actividades fuera del hogar (por mencionar algunas), no le permiten al alumno mantenerse conectado regularmente con sus maestras (os) y envíar las actividades planteadas.
F26: Algunos alumnos no tienen acceso a ninguna herramienta de conectividad en el hogar para mantener una comunicación constante con sus maestras (os), por lo que requieren desplazarse a otros sitios donde puedan acceder a ellos, como ir a casa de un familiar, vecino o a un ciber-café para hacer uso de ellas, propiciando que no se mantengan regularmente comunicados.
F27: Algunos alumnos cuentan con una sola herramienta de conectividad en el hogar, y deben compartir su uso con otros integrantes de su familia (por ejemplo, con hermanos que también estudian) generando que no siempre puedan mantenerse conectados con sus maestras (os) y estar al corriente en la entrega de actividades planteadas.
F28: Algunos alumnos tienen todas las facilidades para acceder a las clases con sus maestras(os) y entregar oportunamente las actividades planteadas, pero no tienen el interés personal para hacerlo.
F29: Algunos alumnos se encuentran solos en el hogar durante la elaboración de las actividades planteadas por sus maestras (os), requiriendo de asesoría y supervisión para su elaboración, lo que propicia inseguridad en el envío de las mismas, optando por no mandarlas para su revisión y registro.
F30: Algunos alumnos están padeciendo la ausencia de sus padres o de algún miembro de su familia a causa de enfermedad o la pérdida de un familiar en el hogar.
F31: Algunos alumnos se hacen cargo de sus hermanos menores, al estar ausente los padres por situación laboral u otra índole.
F32: Registre otras causas (si fuera el caso)

Sheet Gráfica PCI 3
B3: Secretaría de Educación Pública del Estado de Baja California Sur
B4: Dirección de Educación Secundaria
B5: TERCER GRADO
B6: PERIODO EVALUACIÓN: | N6: ='PART 1'!R8 -> CONCENTRADO GENERAL
B7: CICLO ESCOLAR : | N7: ='PART 1'!R9 -> 2020 - 2021
A9: DIRECCIÓN: | F9: ='PART 1'!G11 -> DIRECCIÓN DE EDUCACIÓN SECUNDARIA
A10: DIRECTOR: | E10: ='PCI 3'!C11 -> PROFR. RUMUALDO RAMÍREZ GUTIÉRREZ
B13: Español III | C13: Matemáticas III | D13: Segunda Lengua: Inglés III | E13: Ciencias III (Énfasis en Química) | F13: Historia II | G13: Formación Cívica y Ética II | H13: Tecnología | I13: Educación Física | J13: Artes | P13: TOTAL
B14: ='PCI 3'!D18/P14 -> 0.1066735267 | C14: ='PCI 3'!E18/P14 -> 0.1173280168 | D14: ='PCI 3'!F18/P14 -> 0.09987780565 | E14: ='PCI 3'!G18/P14 -> 0.1176710185 | F14: ='PCI 3'!H18/P14 -> 0.1087315369 | G14: ='PCI 3'!I18/P14 -> 0.1093532274 | H14: ='PCI 3'!K18/P14 -> 0.1111111111 | I14: ='PCI 3'!L18/P14 -> 0.104915643 | J14: ='PCI 3'!M18/P14 -> 0.1243381139 | P14: =SUM('PCI 3'!D18:P18) -> 46647
